Cogmind - Beta 12 X1 @@@ ROGUE MODE // 2022.07.07 @ 23:19:03 Player: Terminus Result: Self-destructed Performance ------------- Evolutions (6) 3000 Regions Visited (27) 5400 Robots Destroyed (519) 2595 Value Destroyed (19029) 19029 Prototype IDs (217) 4340 Alien Tech Used (0) 0 Bonus (5337) 5337 TOTAL SCORE: 39701 Bonus ------- High Alert Combat Kills 3159 Follower Combat Kills 2419 Entered Garrisons 600 Network Hubs Disabled 400 Met Data Miner 300 Used Data Conduit 3000 Met Imprinter 300 Met Zhirov 300 Met R17 at Cetus 500 Friendly Fire -5641 Cogmind --------- Core Integrity 731/1150 Matter 112/300 Energy 277/350 System Corruption 0% Temperature Critical (573) Movement Immobile (Siege) Ox1 Location -4/Factory Parts ------- > --- POWER (2) -------- Reinforced Quantum Reactor > --- PROPULSION (4) --- Centrium Heavy Treads > --- UTILITY (9) ------ Huge Storage Unit Advanced Signal Interpreter Advanced Hacking Suite > --- WEAPON (4) ------- Cooled Plasma Cannon > --- INVENTORY (25) --- Improved Matter Compressor (300) Improved Sensor Array Advanced Sensor Array Advanced Salvage Targeting Computer Medium Regenerative Plating Graphene Brace Improved Hacking Suite Improved Plasma Cutter Peak State ------------ > --- POWER ------------ Quantum Reactor Reinforced Quantum Reactor > --- PROPULSION ------- Centrium Heavy Treads Centrium Heavy Treads > --- UTILITY ---------- Advanced Cooling System Huge Storage Unit Advanced Signal Interpreter Weapon Cycler Medium Regenerative Plating Improved Force Field Advanced Hacking Suite Advanced Hacking Suite Long-range Tractor Beam > --- WEAPON ----------- KE Penetrator KE Penetrator Advanced KE Penetrator Advanced KE Penetrator > --- INVENTORY -------- Quantum Reactor Centrium Heavy Treads Centrium Heavy Treads Improved Matter Compressor Improved Sensor Array Advanced Sensor Array Encrypted Comm Array Advanced Salvage Targeting Computer Centrium Medium Armor Plating Centrium Medium Armor Plating Centrium Medium Armor Plating Graphene Brace Improved Hacking Suite Cooled Plasma Cannon Gauss Rifle Gauss Rifle Gauss Rifle Heavy Rocket Launcher Improved Plasma Cutter [Rating: 140] Favorites ----------- Power Reinforced Deuterium Engine Engine Reinforced Deuterium Engine Reactor Antimatter Reactor Propulsion Armored Treads Treads Armored Treads Leg Aluminum Leg Utility Huge Storage Unit Device Weapon Cycler Storage Huge Storage Unit Processor Advanced Targeting Computer Hackware Hacking Suite Protection Layered Heavy Armor Plating Weapon Gauss Rifle Energy Gun Medium Laser Energy Cannon Advanced Beam Cannon Ballistic Gun Gauss Rifle Ballistic Cannon Light Cannon Launcher Improved Grenade Launcher Special Weapon Plasma Cutter Piercing Weapon Spear Build | -11 -10 -10 -9 -9 -8 -8 -8 -7 -7 -7 -7 -7 -7 -6 -6 -6 -6 -6 -6 -6 -5 -5 -5 -5 -5 -5 -4 ------- Run | Scr Mat Min Mat Min Mat Gar Mat Fac Gar Fac Low Low Zio Pro Fac Gar Fac Low Low Dat Pro Fac Ext Cet Arc Hub Fac Slots Evolved 12 | . . . 2 . 2 . . 2 . . . . . . 2 . . . . . . 2 . . . . 2 Power 1 | . . . . . . . . . . . . . . . . . . . . . . . . . . . 1 Propulsion 2 | . . . 1 . . . . 1 . . . . . . . . . . . . . . . . . . . Utility 7 | . . . 1 . 1 . . 1 . . . . . . 1 . . . . . . 2 . . . . 1 Weapon 2 | . . . . . 1 . . . . . . . . . 1 . . . . . . . . . . . . Parts Attached 344 | 7 12 . 22 3 28 33 31 4 . 23 11 6 3 2 24 21 6 6 4 8 15 12 15 18 4 3 23 Power 19 | 1 1 . 1 . 2 1 1 . . 2 . 1 . 1 . 1 1 . . 1 . . 1 1 . . 3 Engine 11 | 1 1 . 1 . 2 1 1 . . 2 . 1 . 1 . . . . . . . . . . . . . Core . | . . . . . . . . . . . . . . . . . . . . . . . . . . . . Reactor 8 | . . . . . . . . . . . . . . . . 1 1 . . 1 . . 1 1 . . 3 Propulsion 57 | 3 2 . 8 . 5 6 6 1 . 4 3 1 . 1 6 2 . . . . 2 1 2 2 . . 2 Treads 56 | 2 2 . 8 . 5 6 6 1 . 4 3 1 . 1 6 2 . . . . 2 1 2 2 . . 2 Leg 1 | 1 . . . . . . . . . . . . . . . . . . . . . . . . . . . Wheel . | . . . . . . . . . . . . . . . . . . . . . . . . . . . . Hover . | . . . . . . . . . . . . . . . . . . . . . . . . . . . . Flight . | . . . . . . . . . . . . . . . . . . . . . . . . . . . . Utility 134 | 1 4 . 5 1 11 19 15 2 . 7 5 2 . . 11 9 4 4 3 . 3 5 2 9 2 2 8 Device 74 | . 2 . 1 . 1 10 12 1 . 4 3 2 . . 8 6 4 3 3 . 2 1 2 2 2 2 3 Storage 6 | 1 2 . 1 . 2 . . . . . . . . . . . . . . . . . . . . . . Processor 5 | . . . . . . . . . . . . . . . 1 . . . . . . 2 . . . . 2 Hackware 7 | . . . . . 2 . . . . 1 . . . . 1 . . . . . . 1 . 2 . . . Protection 42 | . . . 3 1 6 9 3 1 . 2 2 . . . 1 3 . 1 . . 1 1 . 5 . . 3 Artifact . | . . . . . . . . . . . . . . . . . . . . . . . . . . . . Weapon 134 | 2 5 . 8 2 10 7 9 1 . 10 3 2 3 . 7 9 1 2 1 7 10 6 10 6 2 1 10 Energy Gun 2 | 1 1 . . . . . . . . . . . . . . . . . . . . . . . . . . Energy Cannon 13 | . . . 5 1 . . . . . . . . . . 1 1 . . . . 1 1 1 . . . 2 Ballistic Gun 94 | 1 2 . 1 . 9 5 7 1 . 10 2 1 1 . 6 7 1 1 1 6 8 3 8 5 1 1 6 Ballistic Cannon 4 | . 2 . . . . 1 . . . . 1 . . . . . . . . . . . . . . . . Launcher 14 | . . . 2 1 1 . 1 . . . . 1 2 . . . . 1 . . 1 1 1 . . . 2 Special Weapon 3 | . . . . . . . . . . . . . . . . 1 . . . . . . . 1 1 . . Impact Weapon . | . . . . . . . . . . . . . . . . . . . . . . . . . . . . Slashing Weapon . | . . . . . . . . . . . . . . . . . . . . . . . . . . . . Piercing Weapon 4 | . . . . . . 1 1 . . . . . . . . . . . . 1 . 1 . . . . . Special Melee Weapon . | . . . . . . . . . . . . . . . . . . . . . . . . . . . . Unidentified Prototypes 9 | . . . 3 . . . . . . 1 . . 2 . 2 . . . . . . . . 1 . . . Corrupted Parts 5 | . . . . . . . . . . . . . . . . . . . . . 2 . . 3 . . . System Corruption 18 | . . . . . . . . . . . . . . . . . . . . . 12 . . 6 . . . Parts Lost 69 | . . . . 1 4 9 5 . . 1 2 2 . 1 1 . . 1 1 1 7 2 3 2 . 3 23 Power 5 | . . . . . . . . . . . . . . 1 . . . . . . . . 1 . . . 3 Propulsion 17 | . . . . . 2 4 1 . . . 2 1 . . . . . . . . 2 . 2 . . . 3 Utility 26 | . . . . 1 2 3 2 . . . . 1 . . . . . 1 1 . 1 2 . 1 . 2 9 Weapon 21 | . . . . . . 2 2 . . 1 . . . . 1 . . . . 1 4 . . 1 . 1 8 Highest Loss Streak 22 | . . . . 1 2 2 2 . . 1 1 2 . 1 1 . . 1 1 1 5 2 1 1 . 1 22 To Critical Strikes 2 | . . . . . . 1 . . . . . . . . . . . . . . . . 1 . . . . Average Slot Usage (%) 91 | . 98 100 100 99 99 96 89 90 92 91 91 91 91 92 92 84 80 80 79 71 79 79 81 86 88 87 84 Engine 6 | . 14 14 11 11 8 9 8 7 7 7 7 7 7 7 6 4 . . . . . . . . . . . Reactor 1 | . . . . . . . . . . . . . . . . 1 6 6 6 5 6 5 5 5 5 5 8 Treads 24 | . 28 28 33 33 26 26 26 30 30 29 29 29 30 30 26 18 13 13 13 13 13 11 10 11 11 11 10 Device 11 | . 12 14 11 11 8 9 9 15 15 9 7 12 15 15 13 12 13 13 12 13 13 13 11 11 11 15 18 Storage 8 | . 14 14 11 11 9 9 9 7 7 7 7 7 7 7 6 6 6 6 6 6 6 5 5 5 5 5 5 Hackware 4 | . . . . . 8 1 . . . 4 7 2 . . 5 6 6 6 6 6 6 11 11 11 11 11 9 Protection 7 | . . . 11 10 9 13 8 6 7 6 6 7 7 7 6 6 6 6 6 6 5 4 5 9 11 11 6 Energy Cannon 1 | . . . 8 21 . . . . . . . . . . . . . . . . . . . . . . . Ballistic Gun 20 | . 8 . . . 26 26 26 22 23 22 22 23 22 23 25 24 26 25 26 16 24 22 22 21 19 23 19 Ballistic Cannon 2 | . 15 28 13 . . . . . . . . . . . . . . . . . . . . . . . . Naked Turns . | . . . . . . . . . . . . . . . . . . . . . . . . . . . . Heaviest Build 147 | 14 34 34 67 65 117 126 127 128 128 129 123 120 120 124 131 139 139 139 139 139 139 140 139 141 141 142 147 Greatest Support 160 | 40 40 40 69 69 69 69 65 82 82 82 82 82 80 80 104 150 150 150 150 150 150 150 150 160 160 160 160 Greatest Overweight (x) 4 | 4 1 . 1 . 1 2 2 1 1 2 2 1 1 2 1 1 . . . . . . 1 1 . . . Average Overweight (x) . | . . . . . . 1 1 1 1 1 1 1 1 1 1 . . . . . . . . . . . . Largest Inventory Capacity 25 | 8 15 15 20 20 25 25 25 25 25 25 25 25 25 25 25 25 25 25 25 25 25 25 25 25 25 25 25 Average Capacity 23 | 7 11 15 19 20 24 25 25 25 25 25 25 25 25 25 25 25 25 25 25 25 25 25 25 25 25 25 25 Most Carried 25 | 1 13 14 20 20 25 25 25 24 24 25 25 23 21 25 25 25 25 25 23 24 24 25 25 25 25 25 22 Average Carried 21 | . 9 13 18 19 22 23 24 23 23 24 24 21 21 22 24 24 24 24 22 23 17 18 24 24 24 23 20 Final Capacity 25 | 8 15 15 20 20 25 25 25 25 25 25 25 25 25 25 25 25 25 25 25 25 25 25 25 25 25 25 25 Final Carried 25 | 1 13 14 20 20 25 24 24 24 24 25 23 21 21 25 25 25 25 23 23 24 17 25 23 25 25 22 8 Class Distribution -------------------- 43% | Scavenger-Tank 24% | Tank 19% | Mutant 7% | Scavenger-Gunner 5% | Scavenger-Mutant Dominant Class ---------------- Mutant | -10/Materials Mutant | -10/Mines Mutant | -9/Materials Mutant | -9/Mines Tank | -8/Materials Tank | -8/Garrison Tank | -8/Materials Scavenger-Tank | -7/Factory Scavenger-Tank | -7/Garrison Scavenger-Tank | -7/Factory Tank | -7/Lower Caves Scavenger-Tank | -7/Lower Caves Scavenger-Tank | -7/Zion Scavenger-Tank | -6/Proximity Caves Scavenger-Tank | -6/Factory Scavenger-Tank | -6/Garrison Scavenger-Tank | -6/Factory Scavenger-Tank | -6/Lower Caves Scavenger-Tank | -6/Lower Caves Scavenger-Mutant | -6/Data Miner Scavenger-Tank | -5/Proximity Caves Scavenger-Tank | -5/Factory Scavenger-Gunner | -5/Extension Scavenger-Gunner | -5/Cetus Scavenger-Mutant | -5/Archives Scavenger-Tank | -5/Hub_04(d) Scavenger-Skirmisher | -4/Factory Resources | -11 -10 -10 -9 -9 -8 -8 -8 -7 -7 -7 -7 -7 -7 -6 -6 -6 -6 -6 -6 -6 -5 -5 -5 -5 -5 -5 -4 ----------- Run | Scr Mat Min Mat Min Mat Gar Mat Fac Gar Fac Low Low Zio Pro Fac Gar Fac Low Low Dat Pro Fac Ext Cet Arc Hub Fac Matter Collected 19566 | 209 566 138 501 69 1603 1790 2322 209 25 1902 338 287 30 123 530 1319 756 512 174 233 1448 940 863 766 40 1241 632 Remotely 5362 | . . . . . . 376 829 . . 436 . . . . . . 281 . . . 404 884 . 283 . 1237 632 Salvage Created 24655 | . 511 520 1174 288 2427 1241 2818 331 . 2075 289 196 . 30 456 1266 950 175 216 400 1084 1471 1495 1074 40 2587 1541 Parts 1241 | . 38 13 70 28 147 49 158 24 . 108 16 10 . 2 29 44 43 9 11 12 48 63 59 67 7 104 82 Haulers Intercepted 22 | . 2 . 6 . 6 . 4 . . . . . . . . . . . . . . 1 1 . . 2 . Recyclers Shooed 11 | . 1 1 1 . 1 . . . . . . . . . . . . . . . . 3 . . . 1 3 Parts Field Recycled . | . . . . . . . . . . . . . . . . . . . . . . . . . . . . Retrieved Matter . | . . . . . . . . . . . . . . . . . . . . . . . . . . . . Parts Self-Destructed 86 | . . . . . . . . . . . 5 11 3 9 . . . 9 8 . 41 . . . . . . Prevented 5 | . . . . . . . . . . . . . . . . . . . . . 5 . . . . . . Kills | -11 -10 -10 -9 -9 -8 -8 -8 -7 -7 -7 -7 -7 -7 -6 -6 -6 -6 -6 -6 -6 -5 -5 -5 -5 -5 -5 -4 ------- Run | Scr Mat Min Mat Min Mat Gar Mat Fac Gar Fac Low Low Zio Pro Fac Gar Fac Low Low Dat Pro Fac Ext Cet Arc Hub Fac Combat Hostiles Destroyed 388 | . 11 6 23 12 33 39 51 9 . 28 7 7 . . 6 12 13 9 3 4 23 15 16 15 . 25 21 Melee 1 | . . . . . . 1 . . . . . . . . . . . . . . . . . . . . . Guns 312 | . 7 . . . 33 38 47 9 . 27 6 3 . . 6 12 13 6 3 4 18 10 16 15 . 25 14 Cannons 39 | . 4 6 16 10 . . . . . . 1 . . . . . . . . . . . . . . . 2 AOE 36 | . . . 7 2 . . 4 . . 1 . 4 . . . . . 3 . . 5 5 . . . . 5 Classes Destroyed 25 | . 5 2 3 . 5 1 3 . . . 2 . . 1 . . . . 1 . . . . 1 . 1 . Worker 31 | . . . 1 2 6 . 2 . . 2 . . . . . . . . . . . 5 1 . . 9 3 Builder 29 | . . . . . 4 . 6 . . 3 . . . . . . 2 . . . . 1 1 . . 4 8 Tunneler 3 | . . . . . 1 . 1 . . 1 . . . . . . . . . . . . . . . . . Hauler 22 | . 2 . 6 . 6 . 4 . . . . . . . . . . . . . . 1 1 . . 2 . Recycler 29 | . . 5 1 . 3 . 1 1 . 6 . . . . . . 1 . . . . 4 1 . . 3 3 Carrier 1 | . . . . . . . . . . . . . . . . . . . . . . . . 1 . . . Minesweeper 1 | . . . . . . . . . . . . . . 1 . . . . . . . . . . . . . Mechanic 2 | . . . . . . . 1 . . 1 . . . . . . . . . . . . . . . . . Operator 9 | . 1 . 3 . 1 1 . . . 1 . . . . 1 . . . . . . . 1 . . . . Watcher 28 | . 3 . 3 . 5 1 4 . . 1 . . . . 1 . 2 . . . . . 3 1 . 3 1 Swarmer 80 | . 3 . 7 7 7 2 5 7 . 3 2 5 . . . . 3 9 . . 7 5 . 4 . . 4 Grunt 157 | . 8 4 9 5 14 10 29 1 . 15 . . . . 1 6 6 . . . 11 4 9 . . 15 10 Brawler 7 | . . . 1 . 1 . 3 . . 1 . . . . . . . . . . . . 1 . . . . Duelist 7 | . . . . . . . 1 . . 1 . 1 . . 1 1 . . . . . . 1 . . 1 . Protector 2 | . . . . . . . 2 . . . . . . . . . . . . . . . . . . . . Sentry 41 | . . . 7 . 6 . 7 . . 2 . 1 . . 3 1 1 . 1 . 1 2 4 . . 4 1 Specialist 12 | . . . . . 2 2 2 . . . . . . . . 2 . . . . . . . . . 2 2 Hunter 19 | . . . . . 2 . 1 . . 1 . . . . . 1 2 . 1 . 4 1 1 3 . . 2 Programmer 17 | . . . . . . 2 . 1 . 3 . . . . 1 1 1 . 1 . . 3 . 1 . 2 1 Heavy 7 | . . . . . 1 3 1 . . 2 . . . . . . . . . . . . . . . . . Behemoth 2 | . . . . . . . . . . . . . . . . . . . . . . . . . . 1 1 Cetus Guard 7 | . . . . . . . . . . . . . . . . . . . . . . . . 7 . . . Enhanced Grunt 4 | . . . . . . . . . . . . . . . . . . . . 4 . . . . . . . Samaritan 1 | . . . . . . . . . . . . . . . . . . . 1 . . . . . . . . Thief 1 | . . . . . . . . . . . 1 . . . . . . . . . . . . . . . . Assembled 22 | . . 2 . . . 20 . . . . . . . . . . . . . . . . . . . . . Thug 2 | . . . . . . . . . . . 1 . . . . . . . . . . 1 . . . . . Fireman 3 | . . . . . . . . . . . 3 . . . . . . . . . . . . . . . . Best Kill Streak 26 | . 5 2 5 5 9 7 15 4 . 5 4 4 . 1 2 3 6 3 1 3 5 8 7 6 . 13 26 Combat Bots Only 15 | . 5 2 5 4 7 7 9 4 . 5 4 4 . . 2 3 5 3 1 3 5 5 7 6 . 6 15 Max Kills in Single Turn 7 | . 2 2 5 1 2 2 2 1 . 2 1 3 . 1 1 1 2 2 1 2 4 7 2 2 . 3 4 Gunslinging 1 | . 1 . . . 1 1 1 . . . . . . . . . 1 . . . 1 . 1 1 . 1 . Exploded 4 | . . . 4 1 . . 1 . . 1 . 3 . . . . . 2 . . 4 4 . . . . 1 Melee 1 | . . . . . . 1 . . . . . . . . . . . . . . . . . . . . . Uniques/NPCs Destroyed 2 | . . . . . . . . . . . . . . . . . . . . . . . . 2 . . . A7 (-5/Cetus) Revision 17 (-5/Cetus) Combat | -11 -10 -10 -9 -9 -8 -8 -8 -7 -7 -7 -7 -7 -7 -6 -6 -6 -6 -6 -6 -6 -5 -5 -5 -5 -5 -5 -4 -------- Run | Scr Mat Min Mat Min Mat Gar Mat Fac Gar Fac Low Low Zio Pro Fac Gar Fac Low Low Dat Pro Fac Ext Cet Arc Hub Fac Damage Taken 26846 | . 380 135 743 234 1531 1825 2318 347 . 1785 381 801 . 19 729 632 842 370 275 505 2444 773 798 1518 . 1643 5818 Core 1879 | . 78 17 68 32 108 226 146 . . 98 28 5 . . 107 20 64 65 19 . 134 46 32 65 . 102 419 Absorbed by Shields 675 | . . . . . . 53 . . . . . . . . . . . . . . . . 113 120 . . 389 Reduced by Siege Mode 1134 | . . . . . . . . . . . . . . . . . 70 . . 70 118 33 28 127 . 66 622 Regen/Repaired (Parts) 2863 | . . . 115 . 400 . 113 369 . 706 . . . . . . 554 . . . . . . 136 86 252 132 Core Remaining (%) 65 | 100 . 62 . 75 . . 12 . . . . . . 81 . . . . . . 51 . . . . 75 . Volleys Fired 1276 | . 47 17 61 21 118 136 143 25 . 96 20 12 . 9 20 122 39 17 7 9 65 31 45 70 5 75 66 Largest 4 | . 2 2 2 2 3 3 3 3 . 3 3 3 . 3 4 4 4 4 4 4 4 4 4 4 1 4 4 Hottest 161 | . 70 70 136 136 78 78 78 78 . 78 101 81 . 81 117 122 122 122 122 122 117 119 132 136 35 138 161 Shots Fired 3630 | . 94 34 119 39 349 344 409 75 . 290 60 33 . 27 80 251 154 57 28 36 233 99 171 178 5 299 166 Gun 3243 | . 66 . . . 347 343 402 75 . 290 57 31 . 27 80 178 154 53 28 36 226 90 168 144 1 299 148 Cannon 242 | . 28 34 116 36 . 1 . . . . 3 . . . . 1 . . . . 4 7 1 . . . 11 Launcher 35 | . . . 3 3 2 . 7 . . . . 2 . . . . . 4 . . 3 2 2 . . . 7 Special 110 | . . . . . . . . . . . . . . . . 72 . . . . . . . 34 4 . . Kinetic 3341 | . 64 34 62 . 347 344 402 75 . 290 60 31 . 27 80 178 154 53 28 36 226 90 168 144 1 299 148 Thermal 254 | . 30 . 54 36 . . . . . . . . . . . 73 . . . . 4 7 1 34 4 . 11 Explosive 35 | . . . 3 3 2 . 7 . . . . 2 . . . . . 4 . . 3 2 2 . . . 7 Electromagnetic . | . . . . . . . . . . . . . . . . . . . . . . . . . . . . Robot Hit Streak 41 | . 9 8 19 9 27 34 19 7 . 13 11 4 . 6 17 38 16 4 9 20 26 26 21 32 8 41 20 Robot Miss Streak 6 | . 3 2 3 2 4 3 6 6 . 3 5 4 . 3 4 5 4 3 1 1 4 2 2 2 . 3 4 Penetration Max 2 | . . . . . 1 1 1 . . 1 1 . . . 2 . 1 1 . 1 1 1 1 1 . 1 1 Secondary Targets 72 | . 2 . . . 6 9 8 . . 5 2 1 . . . 4 3 2 . . 6 . 5 6 . 9 4 Max Gunslinging Chain 2 | . 1 . . . 1 1 1 . . 1 1 1 . . . 1 1 1 . . 1 . 2 1 . 1 1 Shots Hit Robots 2361 | . 62 22 84 24 228 195 258 36 . 198 39 14 . 17 56 163 100 17 18 32 166 60 118 139 5 211 99 Core Hits 1070 | . 27 13 35 16 98 80 128 14 . 79 15 15 . 6 25 65 35 11 8 19 55 48 56 50 3 78 91 Critical Kills 31 | . . . 1 . 1 . 2 . . 2 . . . . 4 . 2 . 1 2 . . 2 3 . 9 2 Critical Parts Destroyed 61 | . . . . . 1 1 2 1 . 2 2 . . . . . 4 . 3 . 2 . 4 8 . 25 6 Critical Strikes 107 | . 2 . 5 . 3 1 4 1 . 4 3 . . . 4 . 6 . 4 3 2 . 6 12 . 38 9 Burn 2 | . 2 . . . . . . . . . . . . . . . . . . . . . . . . . . Meltdown 1 | . . . 1 . . . . . . . . . . . . . . . . . . . . . . . . Destroy 98 | . . . . . 3 1 4 1 . 4 2 . . . 4 . 6 . 4 3 2 . 6 11 . 38 9 Blast 5 | . . . 4 . . . . . . . 1 . . . . . . . . . . . . . . . . Sever 1 | . . . . . . . . . . . . . . . . . . . . . . . . 1 . . . Melee Attacks 11 | . . . . . . 2 2 . . . . . . . . . . . . 6 . 1 . . . . . Impact . | . . . . . . . . . . . . . . . . . . . . . . . . . . . . Slashing . | . . . . . . . . . . . . . . . . . . . . . . . . . . . . Piercing 11 | . . . . . . 2 2 . . . . . . . . . . . . 6 . 1 . . . . . Sneak Attacks 1 | . . . . . . . . . . . . . . . . . . . . 1 . . . . . . . Combat Hostiles . | . . . . . . . . . . . . . . . . . . . . . . . . . . . . Follow-up Attacks . | . . . . . . . . . . . . . . . . . . . . . . . . . . . . Damage Inflicted 58871 | . 914 448 2273 721 4131 3673 5805 655 . 4056 961 590 . 376 1070 2674 2059 650 328 792 3622 2223 3322 3620 106 7790 6012 Guns 47390 | . 611 . . . 3979 3667 4819 655 . 3844 879 332 . 369 1070 1907 2059 381 328 735 3280 1544 3263 3242 33 7596 2797 Cannons 3582 | . 253 439 1742 502 . . . . . . 82 . . . . . . . . . . . . . . . 564 Explosions 5915 | . . . 491 188 . . 883 . . 142 . 258 . . . . . 246 . . 342 572 . . . 142 2651 Melee 57 | . . . . . . . . . . . . . . . . . . . . 57 . . . . . . . Ramming 709 | . 50 9 40 31 152 6 103 . . 70 . . . 7 . . . 23 . . . 107 59 . . 52 . Kinetic 48770 | . 601 439 869 . 3979 3667 4819 655 . 3844 961 332 . 369 1070 1907 2059 381 328 735 3280 1544 3263 3242 33 7596 2797 Thermal 3885 | . 263 . 873 502 . . . . . 142 . . . . . 767 . . . . . . . 378 73 . 887 Explosive 5308 | . . . 491 188 . . 883 . . . . 258 . . . . . 246 . . 342 572 . . . . 2328 Electromagnetic 142 | . . . . . . . . . . . . . . . . . . . . . . . . . . 142 . Impact . | . . . . . . . . . . . . . . . . . . . . . . . . . . . . Slashing . | . . . . . . . . . . . . . . . . . . . . . . . . . . . . Piercing 57 | . . . . . . . . . . . . . . . . . . . . 57 . . . . . . . Highest Corruption 18 | . . . . . 1 4 4 1 1 1 1 1 1 . . . 6 6 6 6 18 1 1 7 7 6 . Average Corruption 2 | . . . . . 1 1 4 1 1 1 1 1 1 . . . 5 6 6 6 13 1 1 5 3 3 . Corruption Purged 6 | . . . . . . . . . . . . . . . . . . . . . . . . . 6 . . Corruption Blocked . | . . . . . . . . . . . . . . . . . . . . . . . . . . . . Effects 264 | . . . . . 18 20 63 . . 23 5 6 2 . . . 11 19 10 9 38 1 11 15 1 12 . Message Errors 62 | . . . . . 5 3 16 . . 5 1 2 . . . . 1 7 2 2 7 . 3 6 . 2 . Matter Fused 60 | . . . . . 2 8 13 . . 4 2 2 . . . . 2 2 4 1 12 1 1 3 . 3 . Heat Flow Errors 24 | . . . . . 2 2 3 . . 2 . . 1 . . . 2 4 . 2 3 . . 1 . 2 . Energy Discharges 33 | . . . . . 3 2 8 . . 4 . 1 1 . . . 1 1 1 . 4 . 4 2 1 . . Parts Rejected 3 | . . . . . . 1 1 . . . . . . . . . 1 . . . . . . . . . . Data Loss (minor) 27 | . . . . . 3 1 9 . . 1 1 . . . . . 1 2 . 1 2 . 3 3 . . . Data Loss (major) 17 | . . . . . 2 1 4 . . 1 . . . . . . 1 2 2 1 2 . . . . 1 . Misfires 13 | . . . . . . 1 3 . . 4 . 1 . . . . . 1 . . 2 . . . . 1 . Alerts 7 | . . . . . . . 1 . . . 1 . . . . . . . 1 2 1 . . . . 1 . Weapon Failures 18 | . . . . . 1 1 5 . . 2 . . . . . . 2 . . . 5 . . . . 2 . Overload Shots 10 | . . . . . . . . . . . . . . . . . . . . . . . 1 . . . 9 Overflow Damage 527 | . . 8 41 22 8 . 58 . . . . 5 . . . 6 . 4 . . 30 72 33 . . 12 228 Projectiles 151 | . . 8 13 2 . . . . . . . . . . . 6 . . . . . . . . . . 122 Explosions 318 | . . . 28 20 . . 57 . . . . 5 . . . . . . . . 30 72 . . . . 106 Melee 58 | . . . . . 8 . 1 . . . . . . . . . . 4 . . . . 33 . . 12 . Knockbacks 17 | . 2 5 3 . 1 . 2 . . . 1 . . . . . . . . . . 1 1 . . 1 . Impact 7 | . 1 . . . 1 . 2 . . . . . . . . . . . . . . 1 1 . . 1 . Kinetic 10 | . 1 5 3 . . . . . . . 1 . . . . . . . . . . . . . . . . Secondary . | . . . . . . . . . . . . . . . . . . . . . . . . . . . . Self-Inflicted Damage 267 | . . . . . . . . . . 73 . . . . . . . . . . . . . . . 194 . Shots 3 | . . . . . . . . . . 1 . . . . . . . . . . . . . . . 2 . Rammed 60 | 1 13 1 6 2 13 1 7 . . 3 . . . 1 1 . . 3 . . . 6 2 . . . . Targets Rammed 70 | 1 13 1 7 3 15 2 9 . . 5 . . . 1 1 . . 3 . . . 6 2 . . 1 . Kicked . | . . . . . . . . . . . . . . . . . . . . . . . . . . . . Crushed 10 | . . . 1 1 2 1 2 . . 2 . . . . . . . . . . . . . . . 1 . Highest Temperature 925 | . 21 . 213 52 243 91 295 48 . 249 72 5 175 . 36 85 250 240 24 236 256 17 53 102 . 189 925 Average Temperature 41 | . 8 . 72 13 37 16 38 17 . 24 24 5 99 . 15 19 39 119 18 43 24 7 15 20 . 44 192 Received Heat Transfer 6439 | . 174 78 252 66 477 345 945 9 . 483 338 72 . 9 81 120 234 . 30 . 491 99 182 . . 264 1690 Effects 23 | . . . . . . . 1 . . . . . . . . . . 1 . . . . . . . . 21 Shutdowns 5 | . . . . . . . . . . . . . . . . . . . . . . . . . . . 5 Energy Bleed 2 | . . . . . . . . . . . . . . . . . . 1 . . . . . . . . 1 Interference 2 | . . . . . . . 1 . . . . . . . . . . . . . . . . . . . 1 Short Circuit 3 | . . . . . . . . . . . . . . . . . . . . . . . . . . . 3 Damage (minor) 1 | . . . . . . . . . . . . . . . . . . . . . . . . . . . 1 Damage (major) 8 | . . . . . . . . . . . . . . . . . . . . . . . . . . . 8 Damage (core) 2 | . . . . . . . . . . . . . . . . . . . . . . . . . . . 2 Siege Activations 28 | . . . . . . . . . . . . . . . . . 5 . 2 2 3 3 3 3 . 5 2 Total Turns 745 | . . . . . . . . . . . . . . . . . 94 . 70 37 98 39 61 68 . 142 136 Longest Duration 124 | . . . . . . . . . . . . . . . . . 30 . 65 25 52 26 23 30 . 47 124 Robots Corrupted . | . . . . . . . . . . . . . . . . . . . . . . . . . . . . Combat Hostiles . | . . . . . . . . . . . . . . . . . . . . . . . . . . . . Parts Fried 1 | . . . . . . . . . . . . . . . . 1 . . . . . . . . . . . Impact Corruptions 5 | . . . . . 1 . 1 . . . . . . . . . . 1 . . . . 1 . . 1 . Robots Melted 1 | . . . 1 . . . . . . . . . . . . . . . . . . . . . . . . Combat Hostiles . | . . . . . . . . . . . . . . . . . . . . . . . . . . . . Parts Melted 13 | . . . 6 . . . . . . . . . . . . 3 . . . . . . 1 . . . 3 Heat Transferred 7310 | . 925 . 1480 888 . . . . . 50 . . . . . 2553 . . . . . . . 426 148 . 840 Parts Sabotaged . | . . . . . . . . . . . . . . . . . . . . . . . . . . . . Parts Stolen 2 | . . . . . . . . . . . 2 . . . . . . . . . . . . . . . . Parts Stripped . | . . . . . . . . . . . . . . . . . . . . . . . . . . . . Power Chain Reactions . | . . . . . . . . . . . . . . . . . . . . . . . . . . . . Missiles Intercepted . | . . . . . . . . . . . . . . . . . . . . . . . . . . . . Alert | -11 -10 -10 -9 -9 -8 -8 -8 -7 -7 -7 -7 -7 -7 -6 -6 -6 -6 -6 -6 -6 -5 -5 -5 -5 -5 -5 -4 ------- Run | Scr Mat Min Mat Min Mat Gar Mat Fac Gar Fac Low Low Zio Pro Fac Gar Fac Low Low Dat Pro Fac Ext Cet Arc Hub Fac Peak Influence 1598 | . 257 70 569 332 280 1598 1459 663 287 631 . . . . 256 964 887 . . . . 516 652 768 281 1394 1010 Initial 778 | . . 3 . 126 70 77 778 663 287 150 . . . . . 15 506 . . . . 84 196 364 261 98 685 Average 335 | . 85 32 199 199 85 688 823 331 287 215 . . . . 121 441 672 . . . . 322 246 576 279 685 705 Maximum Alert Level 4 | . 1 . 2 1 1 4 4 2 1 2 . . . . 1 3 3 . . . . 2 2 3 1 4 3 Low Security (%) 48 | 100 94 100 61 68 91 14 . 22 . 50 . . . . 81 17 . . . . . 21 42 . . 13 . Level 1 20 | . 5 . 31 31 8 8 . 70 100 28 . . . . 18 41 . . . . . 52 39 9 100 12 5 Level 2 16 | . . . 6 . . 35 35 6 . 21 . . . . . 14 49 . . . . 26 17 88 . 22 39 Level 3 11 | . . . . . . 17 49 . . . . . . . . 26 50 . . . . . . 2 . 33 54 Level 4 3 | . . . . . . 24 14 . . . . . . . . . . . . . . . . . . 17 . Level 5 . | . . . . . . . . . . . . . . . . . . . . . . . . . . . . High Security . | . . . . . . . . . . . . . . . . . . . . . . . . . . . . Max Security . | . . . . . . . . . . . . . . . . . . . . . . . . . . . . Sterilizations 1 | . . . . . . . 1 . . . . . . . . . . . . . . . . . . . . Squads Dispatched 72 | . 3 . 6 . 4 . 10 4 . 10 . . . . 4 . 4 . . . 1 8 5 . . 5 8 Investigation 20 | . 3 . 3 . 1 . 3 . . 1 . . . . . . 4 . . . 1 2 2 . . . . Extermination 9 | . . . . . . . . 2 . 3 . . . . 2 . . . . . . 2 . . . . . Reinforcement 28 | . . . 3 . 3 . 4 . . 3 . . . . 1 . . . . . . 3 1 . . 5 5 Assault 6 | . . . . . . . 3 . . . . . . . . . . . . . . . 2 . . . 1 Garrison 9 | . . . . . . . . 2 . 3 . . . . 1 . . . . . . 1 . . . . 2 Intercept . | . . . . . . . . . . . . . . . . . . . . . . . . . . . . Searches Triggered . | . . . . . . . . . . . . . . . . . . . . . . . . . . . . Construction Impeded 5 | . . . . . . . 1 . . . . . . . . . . . . . . 1 . . . 1 2 Haulers Reinforced 3 | . . . . . . . . . . . . . . . . . . . . . . 1 . . . 1 1 Active Scanning Responses . | . . . . . . . . . . . . . . . . . . . . . . . . . . . . Cargo Convoy Interrupts 1 | . . . . . . . . . . 1 . . . . . . . . . . . . . . . . . Stealth | -11 -10 -10 -9 -9 -8 -8 -8 -7 -7 -7 -7 -7 -7 -6 -6 -6 -6 -6 -6 -6 -5 -5 -5 -5 -5 -5 -4 --------- Run | Scr Mat Min Mat Min Mat Gar Mat Fac Gar Fac Low Low Zio Pro Fac Gar Fac Low Low Dat Pro Fac Ext Cet Arc Hub Fac Distress Signals 24 | . . . 1 . 3 1 6 . . 1 . . . . 1 . . . . . . . . 2 . 5 4 Communications Jammed . | . . . . . . . . . . . . . . . . . . . . . . . . . . . . Distress Signals . | . . . . . . . . . . . . . . . . . . . . . . . . . . . . Times Spotted 559 | . 19 6 44 15 46 46 70 9 . 35 10 9 . 4 17 22 17 9 4 4 20 24 46 18 . 35 30 Peak Tracking Total 11 | . 3 2 5 4 6 6 6 5 . 5 4 4 . 3 3 4 5 3 1 3 5 5 9 6 . 6 11 Tactical Retreats 29 | . . . 1 2 1 4 7 . . 3 1 . . . . 2 . . 1 . 1 2 1 . . 1 2 Traps | -11 -10 -10 -9 -9 -8 -8 -8 -7 -7 -7 -7 -7 -7 -6 -6 -6 -6 -6 -6 -6 -5 -5 -5 -5 -5 -5 -4 ------- Run | Scr Mat Min Mat Min Mat Gar Mat Fac Gar Fac Low Low Zio Pro Fac Gar Fac Low Low Dat Pro Fac Ext Cet Arc Hub Fac Traps Triggered 18 | . 1 . 2 . 2 3 1 . . 2 . . . . 1 2 3 . . . . 1 . . . . . Indirectly . | . . . . . . . . . . . . . . . . . . . . . . . . . . . . Trap Hack Attempts . | . . . . . . . . . . . . . . . . . . . . . . . . . . . . Triggered . | . . . . . . . . . . . . . . . . . . . . . . . . . . . . Disarmed . | . . . . . . . . . . . . . . . . . . . . . . . . . . . . Reprogrammed . | . . . . . . . . . . . . . . . . . . . . . . . . . . . . Reused . | . . . . . . . . . . . . . . . . . . . . . . . . . . . . Traps Extracted . | . . . . . . . . . . . . . . . . . . . . . . . . . . . . Installed . | . . . . . . . . . . . . . . . . . . . . . . . . . . . . Triggered 5 | . . . . . . . . . . . 1 . . . . . . . . . 4 . . . . . . Machines | -11 -10 -10 -9 -9 -8 -8 -8 -7 -7 -7 -7 -7 -7 -6 -6 -6 -6 -6 -6 -6 -5 -5 -5 -5 -5 -5 -4 ---------- Run | Scr Mat Min Mat Min Mat Gar Mat Fac Gar Fac Low Low Zio Pro Fac Gar Fac Low Low Dat Pro Fac Ext Cet Arc Hub Fac Machines Disabled 71 | . 1 . 2 . 4 7 2 . . 5 1 . . . . 3 1 . . . 1 3 3 5 1 23 9 Max in Single Turn 13 | . 1 . 1 . 1 1 1 . . 2 1 . . . . 1 1 . . . 1 1 1 1 1 13 4 Garrison Access 1 | . . . . . . . . . . . . . . . . . . . . . . . . . . . 1 Garrison Relay 1 | . . . . . . . . . . . . . . . . 1 . . . . . . . . . . . Network Hub 2 | . . . . . . . . . . . . . . . . . . . . . . . . . . 2 . Machines Sabotaged . | . . . . . . . . . . . . . . . . . . . . . . . . . . . . Garrisons Compromised . | . . . . . . . . . . . . . . . . . . . . . . . . . . . . Overloaded Fab Kills . | . . . . . . . . . . . . . . . . . . . . . . . . . . . . Hacking | -11 -10 -10 -9 -9 -8 -8 -8 -7 -7 -7 -7 -7 -7 -6 -6 -6 -6 -6 -6 -6 -5 -5 -5 -5 -5 -5 -4 --------- Run | Scr Mat Min Mat Min Mat Gar Mat Fac Gar Fac Low Low Zio Pro Fac Gar Fac Low Low Dat Pro Fac Ext Cet Arc Hub Fac Machines Accessed 86 | . 8 . 9 . 13 3 6 3 . 3 1 1 . . 7 1 6 . . 4 1 8 8 . . 3 1 Terminals 59 | . 6 . 7 . 8 3 4 1 . 1 . . . . 6 1 3 . . . 1 6 8 . . 3 1 Fabricators 3 | . . . . . . . . . . . . . . . . . 2 . . . . 1 . . . . . Repair Stations 8 | . . . 1 . 2 . 1 1 . 2 . . . . . . 1 . . . . . . . . . . Recycling Units 3 | . 2 . 1 . . . . . . . . . . . . . . . . . . . . . . . . Scanalyzers 4 | . . . . . 2 . 1 . . . . . . . . . . . . . . 1 . . . . . Garrison Access 3 | . . . . . 1 . . 1 . . . . . . 1 . . . . . . . . . . . . Total Hacks 283 | . 26 . 26 . 49 9 21 10 . 13 1 1 . . 14 2 13 . . 29 4 28 17 . . 9 11 Successful 196 | . 18 . 15 . 38 2 11 8 . 10 1 1 . . 8 1 7 . . 29 4 20 9 . . 7 7 Failed 86 | . 7 . 11 . 11 7 10 2 . 3 . . . . 6 1 6 . . . . 8 8 . . 2 4 Catastrophic 11 | . . . 2 . 2 1 3 . . . . . . . 2 . 1 . . . . . . . . . . Database Lockouts 1 | . 1 . . . . . . . . . . . . . . . . . . . . . . . . . . Manual 107 | . 20 . 18 . 16 2 8 1 . . . . 1 . 7 . 1 . . . . 13 6 . . 4 10 Terminals 187 | . 22 . 21 . 28 9 17 3 . 3 . . . . 13 2 6 . . . 4 22 17 . . 9 11 Fabricators 7 | . . . . . . . . . . . . . . . . . 4 . . . . 3 . . . . . Repair Stations 41 | . . . 4 . 16 . 2 6 . 10 . . . . . . 3 . . . . . . . . . . Recycling Units 5 | . 4 . 1 . . . . . . . . . . . . . . . . . . . . . . . . Scanalyzers 9 | . . . . . 4 . 2 . . . . . . . . . . . . . . 3 . . . . . Garrison Access 3 | . . . . . 1 . . 1 . . . . . . 1 . . . . . . . . . . . . Terminal Hacks 111 | . 9 . 8 . 14 2 5 2 . 2 1 1 . . 3 1 3 . . 29 4 11 5 . . 5 6 Record 15 | . . . . . . . . . . . . . . . . . . . . 11 4 . . . . . . Part Schematic 12 | . . . . . . . . . . . . . . . . . . . . 9 . 2 . . . 1 . Robot Schematic 6 | . . . . . . . . . . . . . . . . . . . . 6 . . . . . . . Robot Analysis 4 | . 1 . 1 . 2 . . . . . . . . . . . . . . . . . . . . . . Prototype ID Bank 9 | . 1 . 3 . . . . . . 1 . . . . . . . . . 3 . 1 . . . . . Open Door 7 | . . . . . . 1 . . . . 1 1 . . . . . . . . . 1 3 . . . . Open DSF 2 | . . . . . . . . . . . . . . . . . 1 . . . . 1 . . . . . Level Access Points 1 | . . . . . . . . . . . . . . . . . . . . . . . . . . 1 . Branch Access Points 5 | . . . 1 . 1 . 1 . . . . . . . . . 1 . . . . 1 . . . . . Emergency Access Points 3 | . 1 . . . . 1 . . . . . . . . . 1 . . . . . . . . . . . Terminal Index 2 | . 1 . . . 1 . . . . . . . . . . . . . . . . . . . . . . Fabricator Index 1 | . . . . . . . . . . . . . . . . . . . . . . 1 . . . . . Repair Station Index 1 | . . . . . 1 . . . . . . . . . . . . . . . . . . . . . . Scanalyzer Index 1 | . . . . . 1 . . . . . . . . . . . . . . . . . . . . . . Alert Level 10 | . 2 . . . 1 . 2 . . . . . . . . . . . . . . 1 1 . . 1 2 Unreport Threat 18 | . . . 2 . 4 . 2 2 . . . . . . . . 1 . . . . 1 1 . . 1 4 Locate Traps 1 | . . . . . . . . . . . . . . . . . . . . . . 1 . . . . . Dispatch Records 1 | . . . . . . . . . . 1 . . . . . . . . . . . . . . . . . Hauler Manifests 5 | . . . 1 . 1 . . . . . . . . . 2 . . . . . . 1 . . . . . Zone Layout 7 | . 3 . . . 2 . . . . . . . . . 1 . . . . . . . . . . 1 . Fabricator Hacks 3 | . . . . . . . . . . . . . . . . . 1 . . . . 2 . . . . . Network Status 1 | . . . . . . . . . . . . . . . . . 1 . . . . . . . . . . Load Schematic 1 | . . . . . . . . . . . . . . . . . . . . . . 1 . . . . . Build 1 | . . . . . . . . . . . . . . . . . . . . . . 1 . . . . . Repair Station Hacks 32 | . . . 2 . 14 . 2 4 . 8 . . . . . . 2 . . . . . . . . . . Scan Component 17 | . . . 1 . 8 . 1 2 . 4 . . . . . . 1 . . . . . . . . . . Repair 15 | . . . 1 . 6 . 1 2 . 4 . . . . . . 1 . . . . . . . . . . Recycling Unit Hacks . | . . . . . . . . . . . . . . . . . . . . . . . . . . . . Scanalyzer 8 | . . . . . 4 . 2 . . . . . . . . . . . . . . 2 . . . . . Insert Component 4 | . . . . . 2 . 1 . . . . . . . . . . . . . . 1 . . . . . Analyze 4 | . . . . . 2 . 1 . . . . . . . . . . . . . . 1 . . . . . Garrison Access Hacks 3 | . . . . . 1 . . 1 . . . . . . 1 . . . . . . . . . . . . Unlock Access 3 | . . . . . 1 . . 1 . . . . . . 1 . . . . . . . . . . . . Unauthorized Hacks 39 | . 9 . 5 . 5 . 2 1 . . . . . . 4 . 1 . . . . 5 4 . . 2 1 Terminals 34 | . 7 . 4 . 5 . 2 1 . . . . . . 4 . . . . . . 4 4 . . 2 1 Botnet 33 | . 6 . 4 . 5 . 2 1 . . . . . . 4 . . . . . . 4 4 . . 2 1 Operators 1 | . 1 . . . . . . . . . . . . . . . . . . . . . . . . . . Fabricators 2 | . . . . . . . . . . . . . . . . . 1 . . . . 1 . . . . . Prioritize 1 | . . . . . . . . . . . . . . . . . . . . . . 1 . . . . . Haulers 1 | . . . . . . . . . . . . . . . . . 1 . . . . . . . . . . Repair Stations . | . . . . . . . . . . . . . . . . . . . . . . . . . . . . Recycling Units 3 | . 2 . 1 . . . . . . . . . . . . . . . . . . . . . . . . Tunnel 3 | . 2 . 1 . . . . . . . . . . . . . . . . . . . . . . . . Scanalyzers . | . . . . . . . . . . . . . . . . . . . . . . . . . . . . Garrison Access . | . . . . . . . . . . . . . . . . . . . . . . . . . . . . Data Cores Recovered . | . . . . . . . . . . . . . . . . . . . . . . . . . . . . Used . | . . . . . . . . . . . . . . . . . . . . . . . . . . . . Hacking Detections 71 | . 7 . 8 . 11 3 6 2 . 3 . . . . 7 1 5 . . . 1 7 6 . . 3 1 Full Trace Events 16 | . 1 . 2 . 2 1 2 . . 1 . . . . . . 3 . . . 1 2 1 . . . . Feedback Events 1 | . . . . . 1 . . . . . . . . . . . . . . . . . . . . . . Hackware Fried 1 | . . . . . 1 . . . . . . . . . . . . . . . . . . . . . . Feedback Blocked . | . . . . . . . . . . . . . . . . . . . . . . . . . . . . Robot Schematics Acquired 9 | . . . . . . . . . . . . . 3 . . . . . . 6 . . . . . . . Robots Built . | . . . . . . . . . . . . . . . . . . . . . . . . . . . . Authchips . | . . . . . . . . . . . . . . . . . . . . . . . . . . . . Time . | . . . . . . . . . . . . . . . . . . . . . . . . . . . . Total Robot Build Rating . | . . . . . . . . . . . . . . . . . . . . . . . . . . . . Part Schematics Acquired 31 | . . . . . 2 . 1 . . . . . 15 . . . . . . 9 . 3 . . . 1 . Parts Built 2 | . . . . . . . . . . . . . . . . . . . . . . 2 . . . . . Authchips . | . . . . . . . . . . . . . . . . . . . . . . . . . . . . Time 32 | . . . . . . . . . . . . . . . . . . . . . . 32 . . . . . Total Part Build Rating 16 | . . . . . . . . . . . . . . . . . . . . . . 16 . . . . . Parts Repaired 15 | . . . 1 . 6 . 1 2 . 4 . . . . . . 1 . . . . . . . . . . Time 635 | . . . 32 . 223 . 44 116 . 192 . . . . . . 28 . . . . . . . . . . Parts Recycled . | . . . . . . . . . . . . . . . . . . . . . . . . . . . . Recycled Matter . | . . . . . . . . . . . . . . . . . . . . . . . . . . . . Retrieved Matter . | . . . . . . . . . . . . . . . . . . . . . . . . . . . . Retrieved Components . | . . . . . . . . . . . . . . . . . . . . . . . . . . . . Parts Scanalyzed 4 | . . . . . 2 . 1 . . . . . . . . . . . . . . 1 . . . . . Part Schematics Acquired 4 | . . . . . 2 . 1 . . . . . . . . . . . . . . 1 . . . . . Parts Damaged . | . . . . . . . . . . . . . . . . . . . . . . . . . . . . Bothacking | -11 -10 -10 -9 -9 -8 -8 -8 -7 -7 -7 -7 -7 -7 -6 -6 -6 -6 -6 -6 -6 -5 -5 -5 -5 -5 -5 -4 ------------ Run | Scr Mat Min Mat Min Mat Gar Mat Fac Gar Fac Low Low Zio Pro Fac Gar Fac Low Low Dat Pro Fac Ext Cet Arc Hub Fac Used RIF Installer . | . . . . . . . . . . . . . . . . . . . . . . . . . . . . Robots Hacked . | . . . . . . . . . . . . . . . . . . . . . . . . . . . . Non-combat . | . . . . . . . . . . . . . . . . . . . . . . . . . . . . Combat . | . . . . . . . . . . . . . . . . . . . . . . . . . . . . Robot Hacks Applied . | . . . . . . . . . . . . . . . . . . . . . . . . . . . . Relay Couplers Released 7 | . . . . . . . . . . . . . . . . 4 . . . . . . . . . . 3 Machine Destruction 7 | . . . . . . . . . . . . . . . . 4 . . . . . . . . . . 3 Fabnet Peak Effective % . | . . . . . . . . . . . . . . . . . . . . . . . . . . . . Robots Rewired 20 | . . . . . . . . . . . . . . . . 6 . . . . . . 14 . . . . Allies Hacked 2 | . . . . . . 1 . . . . . . . . . . . . . . . 1 . . . . . Hacks Repelled . | . . . . . . . . . . . . . . . . . . . . . . . . . . . . Allies | -11 -10 -10 -9 -9 -8 -8 -8 -7 -7 -7 -7 -7 -7 -6 -6 -6 -6 -6 -6 -6 -5 -5 -5 -5 -5 -5 -4 -------- Run | Scr Mat Min Mat Min Mat Gar Mat Fac Gar Fac Low Low Zio Pro Fac Gar Fac Low Low Dat Pro Fac Ext Cet Arc Hub Fac Total Allies 41 | . . 3 . . . 1 . . . 3 . . 2 . . 8 . . . . . 3 21 . . . . Largest Group 10 | . . 3 3 . . 1 . . . 3 . . 2 2 2 6 . . . . . 3 10 1 . . . Highest-Rated Group 353 | . . 40 40 . . 39 . . . 93 . . 192 192 192 252 . . . . . 93 353 143 . . . Highest-Rated Ally 159 | . . 16 16 . . 39 . . . 31 . . 96 96 96 88 . . . . . 31 159 143 . . . Warlord Squad Rendezvous 1 | . . . . . . . . . . . . . . . 1 . . . . . . . . . . . . Infantry 1 | . . . . . . . . . . . . . . . 1 . . . . . . . . . . . . Total Orders 2 | . . . . . . . . . . . . . . . . 2 . . . . . . . . . . . STAY 1 | . . . . . . . . . . . . . . . . 1 . . . . . . . . . . . FOLLOW 1 | . . . . . . . . . . . . . . . . 1 . . . . . . . . . . . Ally Attacks 383 | . . . 52 . . 9 . . . 14 . . . 13 13 69 . . . . . 24 174 15 . . . Total Damage 8463 | . . . 585 . . 97 . . . 227 . . . 367 643 2199 . . . . . 442 3567 336 . . . Kills 69 | . . . 10 . . 1 . . . 1 . . . 4 6 16 . . . . . 2 26 3 . . . Allies Corrupted 1 | . . . . . . . . . . . . . . . . 1 . . . . . . . . . . . Allies Melted . | . . . . . . . . . . . . . . . . . . . . . . . . . . . . Intel | -11 -10 -10 -9 -9 -8 -8 -8 -7 -7 -7 -7 -7 -7 -6 -6 -6 -6 -6 -6 -6 -5 -5 -5 -5 -5 -5 -4 ------- Run | Scr Mat Min Mat Min Mat Gar Mat Fac Gar Fac Low Low Zio Pro Fac Gar Fac Low Low Dat Pro Fac Ext Cet Arc Hub Fac Robot Analysis Total 135 | . 1 . 1 . 2 . . . . . . . . . . . . . . 131 . . . . . . . Derelict Logs Recovered 11 | . . 2 . 2 . . . . . . 1 1 2 1 . . . . 1 . 1 . . . . . . Drone Launches . | . . . . . . . . . . . . . . . . . . . . . . . . . . . . Drone Recoveries . | . . . . . . . . . . . . . . . . . . . . . . . . . . . . Exploration | -11 -10 -10 -9 -9 -8 -8 -8 -7 -7 -7 -7 -7 -7 -6 -6 -6 -6 -6 -6 -6 -5 -5 -5 -5 -5 -5 -4 ------------- Run | Scr Mat Min Mat Min Mat Gar Mat Fac Gar Fac Low Low Zio Pro Fac Gar Fac Low Low Dat Pro Fac Ext Cet Arc Hub Fac Turns Passed 33173 | 70 1418 1343 2275 972 4151 2561 2275 755 83 2193 1021 885 2266 637 1237 2036 617 737 463 392 826 638 1545 589 173 505 510 Spaces Moved 12682 | 42 736 750 908 553 1445 839 587 237 30 610 389 345 925 217 445 838 277 312 211 166 367 284 630 189 46 128 176 Core 22 | 22 . . . . . . . . . . . . . . . . . . . . . . . . . . . Treads 12660 | 20 736 750 908 553 1445 839 587 237 30 610 389 345 925 217 445 838 277 312 211 166 367 284 630 189 46 128 176 Legs . | . . . . . . . . . . . . . . . . . . . . . . . . . . . . Wheels . | . . . . . . . . . . . . . . . . . . . . . . . . . . . . Hover . | . . . . . . . . . . . . . . . . . . . . . . . . . . . . Flight . | . . . . . . . . . . . . . . . . . . . . . . . . . . . . Fastest Speed 50 | 50 160 160 160 160 160 240 238 243 243 243 241 241 243 245 232 160 160 160 160 160 160 160 160 160 160 160 160 Average Speed 207 | 134 160 160 205 160 232 242 276 243 243 244 242 243 243 276 244 184 160 160 160 160 160 160 188 174 160 160 160 Slowest Speed 326 | 250 240 160 240 160 240 325 326 243 243 321 326 245 245 323 245 232 160 160 160 160 160 160 250 250 160 160 160 Overloaded Moves . | . . . . . . . . . . . . . . . . . . . . . . . . . . . . Propulsion Burnouts . | . . . . . . . . . . . . . . . . . . . . . . . . . . . . Robots Hopped . | . . . . . . . . . . . . . . . . . . . . . . . . . . . . Cave-ins Triggered . | . . . . . . . . . . . . . . . . . . . . . . . . . . . . Exploration Rate (%) 52 | 4 98 97 92 99 93 80 57 7 6 16 44 57 85 45 11 83 9 56 44 80 50 11 88 56 56 26 10 Regions Visited 27 Branch Regions 14 Pre-discovered Areas 37 | . 2 1 1 . . . . . . . 1 . . . . . . . . 32 . . . . . . . Known Exits Taken 9 | . . . 1 . 1 . 1 1 . . . . . . 1 . 1 . . . 1 1 . . . 1 . Unknown Exits Taken 15 | 1 1 1 . 1 . . . . . 1 1 1 1 1 . . . 1 1 1 . . 1 1 1 . . Scrap Searched 17 | . . 2 . 1 . . . . . . 2 1 4 4 . . . 1 1 . 1 . . . . . . Spaces Dug 145 | . . . 33 11 35 8 2 . . . . 10 . . . . . 13 . . 2 2 16 . . . 13 Terrain Destroyed 923 | . . . 33 36 36 15 49 3 . 50 2 23 . . 1 3 16 42 9 3 47 17 33 12 . 414 79 Melee 3 | . . . . . . . 2 . . . . . . . . . . . . . . 1 . . . . . Projectile 186 | . . . . . 1 15 1 3 . 2 2 3 . . . 3 16 9 9 3 10 7 17 12 . 46 27 AOE 729 | . . . 33 36 35 . 46 . . 48 . 20 . . . . . 32 . . 35 9 16 . . 368 51 Terrain Rammed . | . . . . . . . . . . . . . . . . . . . . . . . . . . . . Walls Destroyed . | . . . . . . . . . . . . . . . . . . . . . . . . . . . . Machines Disabled . | . . . . . . . . . . . . . . . . . . . . . . . . . . . . Actions | -11 -10 -10 -9 -9 -8 -8 -8 -7 -7 -7 -7 -7 -7 -6 -6 -6 -6 -6 -6 -6 -5 -5 -5 -5 -5 -5 -4 --------- Run | Scr Mat Min Mat Min Mat Gar Mat Fac Gar Fac Low Low Zio Pro Fac Gar Fac Low Low Dat Pro Fac Ext Cet Arc Hub Fac Total 17377 | 51 879 859 1204 600 2001 1173 1018 389 42 1170 432 368 939 236 561 1144 372 510 320 265 484 408 905 324 138 279 306 Wait 2521 | . 39 91 163 18 360 136 221 122 9 409 4 6 9 4 39 75 47 171 99 70 31 64 117 24 81 73 39 Move 12648 | 41 735 749 907 552 1442 835 585 236 29 609 388 344 924 216 444 835 276 311 210 165 366 283 629 188 45 128 176 Hop . | . . . . . . . . . . . . . . . . . . . . . . . . . . . . Pick Up 173 | 1 17 1 20 2 22 9 12 2 1 13 2 . . 4 12 16 2 1 . 2 5 9 9 8 1 . 2 Fast Attach 93 | 7 4 . 4 . 7 10 8 2 . 8 4 1 3 . 8 7 1 . . 5 . 1 1 9 2 . 1 Attach 76 | . . . 2 1 9 9 5 2 . 3 3 2 . 1 3 1 . 1 1 1 7 4 3 2 . 3 13 Detach 5 | . 1 . . . 1 2 . . . . . . . . . . . . . . . 1 . . . . . Swap 175 | . 8 . 16 2 12 14 18 . . 12 4 3 . 1 13 13 5 5 3 2 8 7 11 7 2 . 9 Drop 197 | 1 15 . 24 1 15 11 15 . 1 15 7 . 3 . 21 33 2 1 . 5 2 . 7 16 2 . . Fire 1276 | . 47 17 61 21 118 136 143 25 . 96 20 12 . 9 20 122 39 17 7 9 65 31 45 70 5 75 66 Melee 11 | . . . . . . 2 2 . . . . . . . . . . . . 6 . 1 . . . . . Ram 1 | 1 . . . . . . . . . . . . . . . . . . . . . . . . . . . Kick . | . . . . . . . . . . . . . . . . . . . . . . . . . . . . Crush 68 | . 13 1 7 3 15 2 9 . . 5 . . . 1 1 . . 3 . . . 6 2 . . . . Escape Stasis 10 | . . . . . . 6 . . . . . . . . . 4 . . . . . . . . . . . Rewire 123 | . . . . . . 1 . . 2 . . . . . . 38 . . . . . 1 81 . . . . Trap . | . . . . . . . . . . . . . . . . . . . . . . . . . . . . Miscellaneous . | . . . . . . . . . . . . . . . . . . . . . . . . . . . . Route ------- -11/Scrapyard -10/Materials (discovered 4 exits: *Mat x3 / [*Min]) -10/Mines (discovered 2 exits: *Mat x2) -9/Materials (discovered 5 exits: *Mat x3 / *Min x2) -9/Mines (discovered 4 exits: *Mat x2 / [*Exi] / *Zio) -8/Materials (discovered 5 exits: *Fac x3 / *Sto / Gar) -8/Garrison (discovered 3 exits: *Mat x3) -8/Materials (discovered 2 exits: *Fac / *Sto) -7/Factory -7/Garrison -7/Factory -7/Lower Caves -7/Lower Caves -7/Zion -6/Proximity Caves -6/Factory (discovered 4 exits: *Fac x2 / *Low / Gar) -6/Garrison (discovered 3 exits: *Fac x3) -6/Factory (discovered 3 exits: *Fac / *Low x2) -6/Lower Caves -6/Lower Caves (discovered 2 exits: *Fac / *Dat) -6/Data Miner -5/Proximity Caves -5/Factory (discovered 4 exits: Upp x2 / *Ext x2) -5/Extension (discovered 2 exits: *Fac / *Cet) -5/Cetus (discovered 2 exits: *Fac / [*Arc]) -5/Archives -5/Hub_04(d) (discovered 4 exits: *Fac x4) -4/Factory History --------- Turn | Location | Event 5 | -11/Scrapyard | Discovered new exit (range 16) 71 | -11/Scrapyard | Entered Materials 303 | -10/Materials | Build established: Mutant 335 | -10/Materials | Discovered new exit (range 16) 459 | -10/Materials | Central database locked down 779 | -10/Materials | Discovered new exit (range 8) 1163 | -10/Materials | Discovered new exit (range 16) 1324 | -10/Materials | Discovered new exit (range 10) 1489 | -10/Materials | Entered Mines 1527 | -10/Mines | Assembled infested the area 1532 | -10/Mines | Assisted by a Guerilla fighting off Assembled 1597 | -10/Mines | Learned location of Storage (-8) 1816 | -10/Mines | Learned Materials terminal intel 2097 | -10/Mines | Learned Materials emergency access door positions 2450 | -10/Mines | Discovered new exit (range 9) 2669 | -10/Mines | Discovered new exit (range 11) 2694 | -10/Mines | Assisted by bots powering up and referring to "LRC-V3" 2832 | -10/Mines | Entered Materials 2832 | -9/Materials | Accompanied by 3 allies 2832 | -9/Materials | Evolved 2 slots: Propulsion x1, Utility x1 2834 | -9/Materials | Loaded intel: 12 terminal locations 3206 | -9/Materials | Discovered new exit (range 11) 3955 | -9/Materials | Discovered new exit (range 16) 4196 | -9/Materials | Discovered new exit (range 12) 4380 | -9/Materials | Discovered new exit (range 7) 4565 | -9/Materials | Repaired Imp. Treads 4680 | -9/Materials | Discovered new exit (range 4) 4837 | -9/Materials | Identified exit to Mines 5107 | -9/Materials | Entered Mines 5648 | -9/Mines | Learned 4 Materials zone layouts 5753 | -9/Mines | Discovered new exit (range 16) 5755 | -9/Mines | A Derelict revealed a hidden shortcut to a safe place 5820 | -9/Mines | Learned location of 1 exit from Materials 5844 | -9/Mines | Discovered new exit (range 3) 5969 | -9/Mines | Deemed a non-threat by the Exiles lab entrance 5969 | -9/Mines | Discovered new exit (range 5) 6079 | -9/Mines | Entered Materials 6079 | -8/Materials | Evolved 2 slots: Utility x1, Weapon x1 6080 | -8/Materials | Identified exit to Storage 6081 | -8/Materials | Identified exit to Factory 6305 | -8/Materials | Repaired Cld. Ion Engine 6338 | -8/Materials | Repaired Imp. Treads 6340 | -8/Materials | Hacking Suite fried by hacking feedback 6372 | -8/Materials | Repaired Cooling System 6397 | -8/Materials | Build established: Tank 7468 | -8/Materials | Destroyed 7 combat bots 8573 | -8/Materials | Repaired Gauss Rifle 8607 | -8/Materials | Repaired Imp. Treads 8640 | -8/Materials | Repaired Imp. Treads 9307 | -8/Materials | Discovered exit to Factory (range 9) 10014 | -8/Materials | Discovered exit to Factory (range 5) 10226 | -8/Materials | Identified exit to Garrison 10230 | -8/Materials | Entered Garrison 10336 | -8/Garrison | Heavy support dispatched to Materials 10502 | -8/Garrison | Triggered checkpoint 10622 | -8/Garrison | Heavy support dispatched to Materials 10730 | -8/Garrison | Triggered checkpoint 10796 | -8/Garrison | Assembled breached garrison interior 10964 | -8/Garrison | Destroyed 7 combat bots 11013 | -8/Garrison | Heavy support dispatched to Materials 11108 | -8/Garrison | Build established: Scavenger-Tank 11121 | -8/Garrison | Destroyed 7 combat bots 11329 | -8/Garrison | Discovered new exit (range 14) 11778 | -8/Garrison | Heavy support dispatched to Materials 11905 | -8/Garrison | Core integrity fell below 50% 11970 | -8/Garrison | Heavy support dispatched to Materials 12170 | -8/Garrison | Discovered new exit (range 11) 12188 | -8/Garrison | Rescued a captive Derelict 12224 | -8/Garrison | Attempted to access garrison exit controls, blocked by remote lockdown 12456 | -8/Garrison | Attempted to access garrison exit controls, blocked by remote lockdown 12489 | -8/Garrison | Build established: Tank 12673 | -8/Garrison | Discovered new exit (range 14) 12791 | -8/Garrison | Entered Materials 13136 | -8/Materials | Repaired Rnf. Deuterium Engine 13483 | -8/Materials | Build established: Scavenger-Tank 13991 | -8/Materials | First assault squad dispatched 14188 | -8/Materials | Build established: Tank 14842 | -8/Materials | Core integrity fell below 20% 14946 | -8/Materials | Destroyed 9 combat bots 14972 | -8/Materials | Sterilization system engaged 14972 | -8/Materials | Non-combat units ordered to evacuate 14987 | -8/Materials | Build established: Scavenger-Tank 15041 | -8/Materials | Discovered exit to Factory (range 3) 15066 | -8/Materials | Entered Factory 15066 | -7/Factory | Evolved 2 slots: Propulsion x1, Utility x1 15370 | -7/Factory | Repaired Enh. Autogun 15428 | -7/Factory | Repaired Lyr. Heavy Armor Plating 15672 | -7/Factory | Garrison activated, responded to threat 15819 | -7/Factory | Identified exit to Garrison 15821 | -7/Factory | Entered Garrison 15854 | -7/Garrison | Triggered checkpoint 15883 | -7/Garrison | Discovered new exit (range 5) 15904 | -7/Garrison | Entered Factory 16690 | -7/Factory | Allied Derelicts emerged from ambush trap array 16708 | -7/Factory | Cargo convoy interrupted 16961 | -7/Factory | Repaired Enh. Autogun 17001 | -7/Factory | Repaired Arm. Treads 17040 | -7/Factory | Repaired Adv. Treads 17098 | -7/Factory | Repaired Lyr. Heavy Armor Plating 17881 | -7/Factory | Discovered new exit (range 15) 17895 | -7/Factory | Garrison activated, responded to threat 17964 | -7/Factory | Build established: Tank 18097 | -7/Factory | Entered Lower Caves 18104 | -7/Lower Caves | Met a Warlord Commander 18105 | -7/Lower Caves | Learned location of Warlord (-4) 18109 | -7/Lower Caves | Found Unknown Device 18109 | -7/Lower Caves | Identified Encrypted Comm Array 18577 | -7/Lower Caves | Ambushed by wild Derelicts 18748 | -7/Lower Caves | Spotted B-75 Beast 18789 | -7/Lower Caves | Learned Factory interactive machine intel 19091 | -7/Lower Caves | Discovered new exit (range 10) 19118 | -7/Lower Caves | Entered another Lower Caves area 19141 | -7/Lower Caves | Learned location of 1 exit from Factory 19416 | -7/Lower Caves | Attracted the attention of an 0b10 checkpoint 19752 | -7/Lower Caves | Build established: Scavenger-Tank 19979 | -7/Lower Caves | Discovered new exit (range 7) 20003 | -7/Lower Caves | Entered Zion 20089 | -7/Zion | System corruption cleaned by Quarantine Array 20160 | -7/Zion | Discovered new exit (range 13) 20207 | -7/Zion | Acquired unknown access codes intercepted by a Zionite 20420 | -7/Zion | Learned Factory stockpile data 20435 | -7/Zion | Learned location of 1 exit from Factory 20491 | -7/Zion | Given the Hacking Drone Bay 20621 | -7/Zion | Found Prototype Launcher 20621 | -7/Zion | Identified Rocket Array 21526 | -7/Zion | Given A8's code to call for help 21905 | -7/Zion | Enhanced Grunt warped into view, answering call for help 21914 | -7/Zion | Enhanced Grunt warped into view, answering call for help 22269 | -7/Zion | Entered Proximity Caves 22269 | -6/Proximity Caves | Accompanied by 2 allies 22677 | -6/Proximity Caves | Learned Factory interactive machine intel 22875 | -6/Proximity Caves | Discovered new exit (range 11) 22906 | -6/Proximity Caves | Entered Factory 22906 | -6/Factory | Accompanied by 2 allies 22906 | -6/Factory | Evolved 2 slots: Utility x1, Weapon x1 22907 | -6/Factory | Identified exit to Lower Caves 22907 | -6/Factory | Identified exit to Factory 22909 | -6/Factory | Loaded intel: 52 interactive machine locations 23577 | -6/Factory | Spotted B-75 Beast 23580 | -6/Factory | Garrison activated, responded to threat 23803 | -6/Factory | Joined by Warlord Infantry squad 23821 | -6/Factory | Discovered exit to Factory (range 10) 24089 | -6/Factory | Identified exit to Garrison 24143 | -6/Factory | Entered Garrison 24468 | -6/Garrison | Heavy support dispatched to Factory 24758 | -6/Garrison | Triggered checkpoint 24834 | -6/Garrison | Triggered checkpoint 25240 | -6/Garrison | Build established: Scavenger-Mutant 25431 | -6/Garrison | Discovered new exit (range 9) 25434 | -6/Garrison | Found embedded Infiltrators 25460 | -6/Garrison | Attempted to access garrison exit controls, blocked by remote lockdown 25532 | -6/Garrison | Triggered checkpoint 25556 | -6/Garrison | Triggered checkpoint 25586 | -6/Garrison | Discovered new exit (range 10) 25618 | -6/Garrison | Triggered checkpoint 25674 | -6/Garrison | Build established: Scavenger-Tank 25855 | -6/Garrison | Attempted to access garrison exit controls, blocked by remote lockdown 25992 | -6/Garrison | Discovered new exit (range 14) 26179 | -6/Garrison | Entered Factory 26180 | -6/Factory | Loaded intel: 52 interactive machine locations 26251 | -6/Factory | Repaired Lyr. Heavy Armor Plating? 26406 | -6/Factory | Discovered exit to Factory (range 15) 26796 | -6/Factory | Entered Lower Caves 27503 | -6/Lower Caves | Discovered new exit (range 12) 27533 | -6/Lower Caves | Entered another Lower Caves area 27541 | -6/Lower Caves | Discovered exit to Factory (range 11) 27641 | -6/Lower Caves | Learned 4 Factory zone layouts 27796 | -6/Lower Caves | Attracted the attention of an 0b10 checkpoint 27832 | -6/Lower Caves | Spotted B-75 Beast 27970 | -6/Lower Caves | Discovered new exit (range 15) 27996 | -6/Lower Caves | Entered Data Miner 27996 | -6/Data Miner | Discovered new exit (range 6) 28029 | -6/Data Miner | Met Data Miner 28059 | -6/Data Miner | Learned location of Section 7 (-2) 28059 | -6/Data Miner | Acquired the access code to Warlord's prototype stash 28080 | -6/Data Miner | Received God Mode back door access code from Data Miner 28188 | -6/Data Miner | Interfaced with the Data Conduit 28341 | -6/Data Miner | Found Exp. Thermal Shield 28388 | -6/Data Miner | Entered Proximity Caves 28478 | -5/Proximity Caves | Attracted the attention of an 0b10 base 28500 | -5/Proximity Caves | Lost 5 parts (2n1u2w) 28635 | -5/Proximity Caves | System corruption reached 10% 28706 | -5/Proximity Caves | Learned location of 1 exit from Research 28706 | -5/Proximity Caves | Learned 8 Factory zone layouts 28706 | -5/Proximity Caves | Learned Extension trap positions 28723 | -5/Proximity Caves | Learned Factory stockpile data 28866 | -5/Proximity Caves | Spotted B-75 Beast 29192 | -5/Proximity Caves | Discovered exit to Factory (range 11) 29214 | -5/Proximity Caves | Entered Factory 29214 | -5/Factory | Evolved 2 slots: Utility x2 29215 | -5/Factory | Identified exit to Upper Caves 29217 | -5/Factory | Loaded intel: 253 machine locations 29223 | -5/Factory | Identified exit to DSF 29412 | -5/Factory | Identified exit to Extension 29430 | -5/Factory | Allied Derelicts emerged from ambush trap array 29474 | -5/Factory | Fabricated Arm. Heavy Treads (x2) 29503 | -5/Factory | Garrison activated, responded to threat 29852 | -5/Factory | Entered Extension 29853 | -5/Extension | Loaded intel: 19 trap records 29854 | -5/Extension | Loaded intel: 29 machine locations 29968 | -5/Extension | Rescued a captive Derelict 29969 | -5/Extension | Rescued a captive Derelict 29989 | -5/Extension | Rescued a captive Derelict 29996 | -5/Extension | Rescued a captive Derelict 30094 | -5/Extension | Build established: Scavenger-Gunner 30575 | -5/Extension | Spotted B-75 Beast 30593 | -5/Extension | Allies destroyed B-75 Beast 30593 | -5/Extension | Spotted B-75 Beast 30616 | -5/Extension | Allies destroyed B-75 Beast 30677 | -5/Extension | Disrupted transfer network 30994 | -5/Extension | Rescued A7 31225 | -5/Extension | Rescued a captive Derelict 31225 | -5/Extension | Rescued a captive Derelict 31329 | -5/Extension | Discovered new exit (range 10) 31331 | -5/Extension | Discovered new exit (range 6) 31352 | -5/Extension | First assault squad dispatched 31395 | -5/Extension | Destroyed 7 combat bots 31397 | -5/Extension | Entered Cetus 31397 | -5/Cetus | Accompanied by 1 ally (A7) 31398 | -5/Cetus | Loaded intel: 24 machine locations 31402 | -5/Cetus | Acquired a Cetus Manufacturing Module code from A7 31435 | -5/Cetus | Spotted Cetus Guard 31435 | -5/Cetus | Spotted Cetus Guard 31438 | -5/Cetus | Spotted Cetus Guard 31442 | -5/Cetus | Allies destroyed Cetus Guard 31442 | -5/Cetus | Spotted Cetus Guard 31445 | -5/Cetus | Destroyed Cetus Guard 31451 | -5/Cetus | Destroyed Cetus Guard 31454 | -5/Cetus | Destroyed Cetus Guard 31553 | -5/Cetus | Cetus Manufacturing Module disabled 31698 | -5/Cetus | Found Prototype Protection 31698 | -5/Cetus | Identified Med. Regenerative Plating 31700 | -5/Cetus | Destroyed A7 31702 | -5/Cetus | Extracted ID and sensor layout for unrecognized location from A7's data core 31747 | -5/Cetus | Discovered new exit (range 15) 31812 | -5/Cetus | Spotted Cetus Guard 31812 | -5/Cetus | Spotted Cetus Guard 31816 | -5/Cetus | Spotted Cetus Guard 31821 | -5/Cetus | Destroyed Cetus Guard 31821 | -5/Cetus | Spotted Cetus Guard 31837 | -5/Cetus | Destroyed Cetus Guard 31837 | -5/Cetus | Destroyed Cetus Guard 31843 | -5/Cetus | Destroyed Cetus Guard 31861 | -5/Cetus | Discovered new exit (range 15) 31873 | -5/Cetus | Met Revision 17 31878 | -5/Cetus | Destroyed Revision 17 31986 | -5/Cetus | Entered Archives 31987 | -5/Archives | Loaded intel: 8 machine locations 32126 | -5/Archives | Met Zhirov 32132 | -5/Archives | Reinforcements dispatched to Archives 32140 | -5/Archives | Discovered new exit (range 13) 32159 | -5/Archives | Entered Hub_04(d) 32160 | -5/Hub_04(d) | Loaded intel: 104 machine locations 32183 | -5/Hub_04(d) | Identified exit to Factory 32431 | -5/Hub_04(d) | Spotted B-75 Beast 32464 | -5/Hub_04(d) | Destroyed B-75 Beast 32513 | -5/Hub_04(d) | Build established: Scavenger-Tank 32574 | -5/Hub_04(d) | Network Hub disabled 32643 | -5/Hub_04(d) | Network Hub disabled 32662 | -5/Hub_04(d) | Spotted Lightning 32662 | -5/Hub_04(d) | Spotted Lightning 32664 | -5/Hub_04(d) | Entered Factory 32664 | -4/Factory | Evolved 2 slots: Power x1, Utility x1 32665 | -4/Factory | Loaded intel: 260 machine locations 33009 | -4/Factory | Garrison activated, responded to threat 33045 | -4/Factory | Spotted B-86 Titan 33058 | -4/Factory | Destroyed B-86 Titan 33112 | -4/Factory | Garrison activated, responded to threat 33174 | -4/Factory | Self-destructed Last Messages --------------- 33167_ Power failure, Rnf. Quantum Reactor shutdown. 33167_ Overheating: Energy bleed (-69). 33167_ U-05 Engineer lays Concrete. 33168_ K-01 Serf collects debris. 33168_ U-05 Engineer lays Concrete. 33169_ Centrium Medium Armor Plating destroyed. 33169_ U-05 Engineer lays Concrete. 33169_ M-13 Machinist repairs Field Laser. 33169_ U-05 Engineer lays Concrete. 33170_ Centrium Heavy Treads destroyed. 33170_ U-05 Engineer lays Concrete. 33171_ K-01 Serf collects debris. 33171_ U-05 Engineer lays Concrete. 33172_ Broken Encrypted Comm Array destroyed. 33172_ U-05 Engineer lays Concrete. 33173_ Overheating: Centrium Heavy Treads damaged (-53). 33173_ Overheating: Huge Storage Unit damaged (-44). 33173_ U-05 Engineer lays Concrete. 33173_ M-13 Machinist fits Backup Power I on U-05 Engineer. 33173_ U-05 Engineer lays Concrete. Map ----- +----------------------------------------------------+ | ???????????????????????????????????????????"""""?? | | ???????????????????????????????????????????"""""?? | | ???????????????????????????????????????????"""???? | | ?????????????????????????????????????????????????? | | ?????????????????????????????????????????????????? | | ?????????????????????????????????????????????????? | | ?????????????????????????????????????????????????? | | ?????????????????????????????????????????????????? | | ?????????????????????????????????????????????????? | | """"?""""""?""""""???????????????????????????????? | | """"?""""""?""""""??????? ?????????????????????? | | """"?""""""?""""""??? " ???????????????????? | | """"?""""""?"""""" G"==#####?????????????????? | | ???????????????? ! % " # # #?#???????????????? | | ??????????????? [% * #+####????????????? | | ???????????????? %!= # # ????????????? | | ??????????????##+ #####h##k# # ??????"?????? | | ??????????????? !% % # ???????T?????? | | ???????????????? g g u # ???????"?????? | | ?"""?"""?????"""" u u # """"?""""???????? | | ?"""?"""?????""""?# g u # """"?""""???????? | | ?"""?"""?????""""?# # """"?""""???????? | | ?????????????""""?# u# """"?""""???????? | | ?"""?"""?????""""?# =m!# """" """"???????? | | ?"""?"""?????""""?# =%!# "" """"???????? | | ?"""?"""??????????# @ %g*+ % "" """"???????? | | ????????????????# u !% # % % ????????? | | ????????????????# "S " #######???????????? | | ?????????????????# """ #?????????????????? | | ??????????????????####;#########?????????????????? | | ?????????????????????# #?????????????????????????? | | ?????????????#########"#?????????????????????????? | | ?????????????# ! #?????????????????????????? | | ?????????????# #?????????????????????????? | | ?????????????# ! "T" #?????????????????????????? | | ?????????##### #???????????????????????""" | | ##########T ######+#######?????????????????????""" | | + #?????????????????????""" | | ###################### #???????????????????????? | | #?""""?????????????????????????"""?"""?????????? | | #?""""??????"""????????????????"""?"""?????????? | | #?""""??????"""????????????????"""?"""?????????? | | #?""""??????"""????????????????????????????????? | | #??????????????????????????????"""?"""?????????? | | #??????????????????????????????"""?"""?????????? | | #??????????????????????????????"""?"""?????????? | | +??????????????????????????????????????????????? | | #??????????????????????????????????????????????? | | #??????????????????????????????????????????????? | | ###??????????????????????????????????????????????? | +----------------------------------------------------+ Best States ------------- Heat Dissipation 74 Energy Generation 45 Energy Capacity 600 Matter Stores 300 Matter Capacity 300 Sight Range 16 Robot Scan Range 16 Terrain Scan Density 10 Armor Coverage 1200 Resistance: KI 20 Weapon Cycling 15 Evasion (%) 50 Targeting Accuracy 8 Target Analysis 6 Recoil Reduction 4 Offensive Hacking 28 Item Schematics ----------------- Gauss Rifle | -8/Materials | Scanalyzed Plasma Cutter | -8/Materials | Scanalyzed Graphene Brace | -8/Materials | Scanalyzed Adv. ECM Suite | -7/Zion | Archive Lgt. Fission Core | -7/Zion | Archive Hpw. Shock Rifle | -7/Zion | Archive Imp. Deuterium Engine | -7/Zion | Archive Adv. Melee Analysis Suite | -7/Zion | Archive Shock Absorption System | -7/Zion | Archive Enh. Gauss Cannon | -7/Zion | Archive Fission Core | -7/Zion | Archive Spear | -7/Zion | Archive Weapon Cycler | -7/Zion | Archive EM Disruption Field | -7/Zion | Archive Mak. Laser | -7/Zion | Archive Phase Shifter | -7/Zion | Archive Proton Missile Launcher | -7/Zion | Archive Wave Gun | -7/Zion | Archive Combat Drone Bay | -6/Data Miner | Free Lgt. Regenerative Plating | -6/Data Miner | Free Cld. Nuclear Pulse Thruster | -6/Data Miner | Free Imp. Matter Compressor | -6/Data Miner | Free Hvy. Proton Cannon | -6/Data Miner | Free Impulse Thruster | -6/Data Miner | Free Point Defense Array | -6/Data Miner | Free Adv. Datajack | -6/Data Miner | Free Q-thruster | -6/Data Miner | Free Imp. Heavy Treads | -5/Factory | Scanalyzed Arm. Heavy Treads | -5/Factory | Hacked Adv. Targeting Computer | -5/Factory | Hacked Adv. Target Analyzer | -5/Hub_04(d) | Hacked Robot Schematics ------------------ S-27 Virus | -7/Zion | Archive K-01 Serf | -7/Zion | Archive M-14 Sweeper | -7/Zion | Archive Y-64 Sentinel | -6/Data Miner | Free B-60 Warrior | -6/Data Miner | Free G-50 Soldier | -6/Data Miner | Free C-35 Carver | -6/Data Miner | Free O-32 Director | -6/Data Miner | Free H-77 Assassin | -6/Data Miner | Free Fabricated ------------ Arm. Heavy Treads | x2 | -5/Factory Alien Tech Used ----------------- None Achievements -------------- None Challenges ------------ None Game ------ Seed ZioniteSapperTerrabomb Manual? 0 Play Time 02:45:48 Cumulative 1533.8 hours Start 2022.07.07 @ 15:41:45 End 2022.07.07 @ 23:19:03 Sessions 5 Manual Loads 0 Difficulty Rogue Special Mode None Game No. 540 Rogue 540 Adventurer 0 Explorer 0 Win Type - Total 108 Types 22/12/45/6/1/2/18/1/1 Lore% 96 Gallery% 96 Achievement% 86 Wizard Run 0 Options --------- ASCII 0 Keyboard 0 Movement Numpad Keybinds 0 Fullscreen 1 Font 18/SmallcapsGlow Map View 76x50 Tactical HUD 1 Map Filters NONE Filters NONE Steam 1 RUN: fe337235-3c6f-4aee-a2a2-4d8b8e919067